Organisation Name,Department where exp. Incurred,Service Category Label,Supplier (Beneficiary),Purpose of Expenditure,Procurement (Merchant) Category,Purchase Date,Settlement Date,Transaction Number,Net Amount (�)
Stockport MBC,Corporate and Support Services,Central Services to the public,AVANTI WEST COAST,Travelling Expenses,Human Resources Travel & Subsistence ,30.12.2019,16.01.2020,GPC12190000001,111.00
Stockport MBC,Corporate and Support Services,Central Services to the public,AVANTI WEST COAST,Travelling Expenses,Human Resources Travel & Subsistence ,30.12.2019,16.01.2020,GPC12190000002,171.00
Stockport MBC,Corporate and Support Services,Central Services to the public,HOTEL ON BOOKING.COM,Travelling Expenses,Human Resources Travel & Subsistence ,30.12.2019,16.01.2020,GPC12190000003,159.20
Stockport MBC,Corporate and Support Services,Central Services to the public,SAINSBURYS SUPERMARKET,Office Expenses,Catering  ,20.12.2019,16.01.2020,GPC12190000004,10.80
Stockport MBC,Corporate and Support Services,Central Support Costs,FACEBK  JQPYGQ6MG2,Office Expenses,Facilities & Management Services  ,31.12.2019,16.01.2020,GPC12190000005,128.39
Stockport MBC,Corporate and Support Services,Central Support Costs,FACEBK  XG63TQSLG2,Office Expenses,Facilities & Management Services  ,27.12.2019,16.01.2020,GPC12190000006,700.00
Stockport MBC,Corporate and Support Services,Central Support Costs,APPLE.COM/BILL,Information and Communications Technology,Information Communication Technology  ,26.12.2019,16.01.2020,GPC12190000007,6.99
Stockport MBC,Services to People,Childrens & Educational Services,SKATE MANCHESTER,Catering Supplies,Catering Food & Beverages ,17.12.2019,16.01.2020,GPC12190000008,40.50
Stockport MBC,Services to People,Childrens & Educational Services,HEATON CHAPEL STN TO,Catering Supplies,Catering Food & Beverages ,17.12.2019,16.01.2020,GPC12190000009,46.80
Stockport MBC,Services to People,Childrens & Educational Services,ANNIES RESTAURANT,Catering Supplies,Catering Food & Beverages ,17.12.2019,16.01.2020,GPC12190000010,24.35
Stockport MBC,Services to People,Childrens & Educational Services,ASDA STORES 4840,Catering Supplies,Catering Food & Beverages ,16.12.2019,16.01.2020,GPC12190000011,1.10
Stockport MBC,Services to People,Childrens & Educational Services,ASDA STORES 4840,Catering Supplies,Catering Food & Beverages ,16.12.2019,16.01.2020,GPC12190000012,16.69
Stockport MBC,Services to People,Childrens & Educational Services,ANNIES RESTAURANT,Catering Supplies,Catering Food & Beverages ,13.12.2019,16.01.2020,GPC12190000013,150.00
Stockport MBC,Services to People,Childrens & Educational Services,ASDA STORES 4840,Catering Supplies,Catering Food & Beverages ,13.12.2019,16.01.2020,GPC12190000014,10.94
Stockport MBC,Services to People,Childrens & Educational Services,ASDA STORES 4840,Catering Supplies,Catering Food & Beverages ,13.12.2019,16.01.2020,GPC12190000015,6.00
Stockport MBC,Services to People,Childrens & Educational Services,ASDA STORES 4840,Catering Supplies,Catering Food & Beverages ,12.12.2019,16.01.2020,GPC12190000016,0.95
Stockport MBC,Services to People,Childrens & Educational Services,ASDA STORES 4840,Catering Supplies,Catering Food & Beverages ,11.12.2019,16.01.2020,GPC12190000017,22.48
Stockport MBC,Services to People,Childrens & Educational Services,ASDA STORES 4840,Catering Supplies,Catering Food & Beverages ,10.12.2019,16.01.2020,GPC12190000018,15.40
Stockport MBC,Services to People,Childrens & Educational Services,ASDA STORES 4840,Catering Supplies,Catering Food & Beverages ,09.12.2019,16.01.2020,GPC12190000019,23.70
Stockport MBC,Services to People,Childrens & Educational Services,ASDA STORES 4840,Catering Supplies,Catering Food & Beverages ,05.12.2019,16.01.2020,GPC12190000020,12.98
Stockport MBC,Services to People,Childrens & Educational Services,ASDA STORES 4840,Catering Supplies,Catering Food & Beverages ,04.12.2019,16.01.2020,GPC12190000021,16.98
Stockport MBC,Services to People,Childrens & Educational Services,ASDA STORES 4840,Catering Supplies,Catering Food & Beverages ,03.12.2019,16.01.2020,GPC12190000022,3.75
Stockport MBC,Services to People,Childrens & Educational Services,ASDA STORES 4840,Catering Supplies,Catering Food & Beverages ,02.12.2019,16.01.2020,GPC12190000023,21.72
Stockport MBC,Corporate and Support Services,Central Services to the public,BRITANNIA HOTEL,Furniture and Equipment,Environmental Services Technical Equipment ,11.12.2019,16.01.2020,GPC12190000024,200.00
Stockport MBC,Corporate and Support Services,Central Services to the public,HOME BARGAINS,Furniture and Equipment,Environmental Services Technical Equipment ,07.12.2019,16.01.2020,GPC12190000025,29.88
Stockport MBC,Corporate and Support Services,Central Services to the public,HOME BARGAINS,Furniture and Equipment,Environmental Services Technical Equipment ,05.12.2019,16.01.2020,GPC12190000026,49.76
Stockport MBC,Corporate and Support Services,Central Services to the public,HOME BARGAINS,Furniture and Equipment,Environmental Services Technical Equipment ,05.12.2019,16.01.2020,GPC12190000027,56.26
Stockport MBC,Corporate and Support Services,Central Services to the public,WILKO RETAIL LIMITED,Furniture and Equipment,Environmental Services Technical Equipment ,05.12.2019,16.01.2020,GPC12190000028,128.00
Stockport MBC,Services to People,Childrens & Educational Services,AMZNMKTPLACE,Furniture and Equipment,Furniture & Soft Furnishings  ,20.12.2019,16.01.2020,GPC12190000029,10.82
Stockport MBC,Services to People,Childrens & Educational Services,WWW.FABERMUSIC.COM,Furniture and Equipment,Furniture & Soft Furnishings  ,18.12.2019,16.01.2020,GPC12190000030,305.70
Stockport MBC,Services to People,Childrens & Educational Services,CBA PARALLELS,Information and Communications Technology,Information Communication Technology  ,16.12.2019,16.01.2020,GPC12190000031,199.95
Stockport MBC,Services to People,Childrens & Educational Services,WWW.TRIFIBRE.CO.UK,Furniture and Equipment,Environmental Services Technical Equipment ,12.12.2019,16.01.2020,GPC12190000032,516.20
Stockport MBC,Services to People,Childrens & Educational Services,MFG,Fuel,Vehicle Management Fuel ,05.12.2019,16.01.2020,GPC12190000033,11.63
Stockport MBC,Services to People,Childrens & Educational Services,TERRAIN TYRES LIMITED,Vehicle Repairs and Maintenance,Vehicle Management  ,05.12.2019,16.01.2020,GPC12190000034,172.50
Stockport MBC,Services to People,Childrens & Educational Services,PREMIER INN44010600,Expenses and Allowances,Catering  ,03.12.2019,16.01.2020,GPC12190000035,107.00
Stockport MBC,Services to People,Childrens & Educational Services,PREMIER INN44010600,Expenses and Allowances,Catering  ,03.12.2019,16.01.2020,GPC12190000036,-107.00
Stockport MBC,Services to People,Childrens & Educational Services,ADOBE CREATIVE CLOUD,Office Expenses,Facilities & Management Services  ,01.01.2020,16.01.2020,GPC12190000037,70.80
Stockport MBC,Services to People,Childrens & Educational Services,FACEBK  PJWLVQWRK2,Office Expenses,Facilities & Management Services  ,31.12.2019,16.01.2020,GPC12190000038,400.00
Stockport MBC,Services to People,Childrens & Educational Services,GOOGLE  ADS8179771860,Office Expenses,Facilities & Management Services  ,30.12.2019,16.01.2020,GPC12190000039,500.00
Stockport MBC,Services to People,Childrens & Educational Services,TRAINLINE,Travelling Expenses,Human Resources Travel & Subsistence ,19.12.2019,16.01.2020,GPC12190000040,155.80
Stockport MBC,Services to People,Childrens & Educational Services,TRAINLINE,Travelling Expenses,Human Resources Travel & Subsistence ,19.12.2019,16.01.2020,GPC12190000041,185.10
Stockport MBC,Services to People,Childrens & Educational Services,TRAINLINE,Travelling Expenses,Human Resources Travel & Subsistence ,19.12.2019,16.01.2020,GPC12190000042,189.90
Stockport MBC,Services to People,Childrens & Educational Services,GOOGLE  ADS8179771860,Office Expenses,Facilities & Management Services  ,18.12.2019,16.01.2020,GPC12190000043,500.00
Stockport MBC,Services to People,Childrens & Educational Services,CVAA UK LTD,Staff Training,Human Resources  ,16.12.2019,16.01.2020,GPC12190000044,237.00
Stockport MBC,Services to People,Childrens & Educational Services,OODLES SOFT PLAY,Publicity and Promotion,Arts & Leisure Services  ,10.12.2019,16.01.2020,GPC12190000045,30.00
Stockport MBC,Services to People,Childrens & Educational Services,ONE4ALL,Publicity and Promotion,Arts & Leisure Services  ,10.12.2019,16.01.2020,GPC12190000046,506.50
Stockport MBC,Services to People,Childrens & Educational Services,GOOGLE  ADS8179771860,Office Expenses,Facilities & Management Services  ,09.12.2019,16.01.2020,GPC12190000047,500.00
Stockport MBC,Services to People,Childrens & Educational Services,HEATON CHAPEL SST,Travelling Expenses,Human Resources Travel & Subsistence ,11.12.2019,16.01.2020,GPC12190000048,5.10
Stockport MBC,Services to Place,Central Support Costs,COSTA COFFEE,Office Expenses,Catering  ,30.12.2019,16.01.2020,GPC12190000049,7.05
Stockport MBC,Services to Place,Central Support Costs,STOCKPORT TVM,Travelling Expenses,Human Resources Travel & Subsistence ,10.12.2019,16.01.2020,GPC12190000050,6.30
Stockport MBC,Services to Place,Central Support Costs,STOCKPORT STN SST,Travelling Expenses,Human Resources Travel & Subsistence ,03.12.2019,16.01.2020,GPC12190000051,6.30
Stockport MBC,Services to People,Childrens & Educational Services,AMZNMKTPLACE AMAZON.CO,Office Expenses,Stationery    ,18.12.2019,16.01.2020,GPC12190000052,78.51
Stockport MBC,Services to People,Childrens & Educational Services,WM MORRISONS STORE,Office Expenses,Stationery    ,18.12.2019,16.01.2020,GPC12190000053,20.00
Stockport MBC,Services to People,Childrens & Educational Services,JUNO MEDIA LIMITED,Office Expenses,Stationery    ,16.12.2019,16.01.2020,GPC12190000054,11.02
Stockport MBC,Services to People,Childrens & Educational Services,AMAZON PRIME EL4LA3LD5,Furniture and Equipment,Furniture & Soft Furnishings  ,13.12.2019,16.01.2020,GPC12190000055,7.99
Stockport MBC,Services to People,Childrens & Educational Services,AMAZON.CO.UK 1F1R01TX5,Office Expenses,Stationery    ,13.12.2019,16.01.2020,GPC12190000056,6.50
Stockport MBC,Services to People,Childrens & Educational Services,WM MORRISONS STORE,Publicity and Promotion,Arts & Leisure Services  ,11.12.2019,16.01.2020,GPC12190000057,6.80
Stockport MBC,Services to People,Childrens & Educational Services,AMZNMKTPLACE,Office Expenses,Stationery    ,03.12.2019,16.01.2020,GPC12190000058,27.97
Stockport MBC,Services to People,Childrens & Educational Services,LIGHT CINEMAS LTD,Fees and Charges,Education  ,19.12.2019,16.01.2020,GPC12190000059,54.50
Stockport MBC,Services to People,Childrens & Educational Services,LIGHT CINEMAS LTD,Fees and Charges,Education  ,19.12.2019,16.01.2020,GPC12190000060,39.50
Stockport MBC,Services to People,Childrens & Educational Services,WM MORRISONS STORE,Catering Supplies,Catering Food & Beverages ,11.12.2019,16.01.2020,GPC12190000061,23.39
Stockport MBC,Services to People,Childrens & Educational Services,WM MORRISONS STORE,Catering Supplies,Catering Food & Beverages ,11.12.2019,16.01.2020,GPC12190000062,16.15
Stockport MBC,Services to People,Childrens & Educational Services,ASDA GROCERIES ONLINE,Catering Supplies,Catering Food & Beverages ,12.12.2019,16.01.2020,GPC12190000063,50.95
Stockport MBC,Services to People,Childrens & Educational Services,WM MORRISONS STORE,Catering Supplies,Catering Food & Beverages ,12.12.2019,16.01.2020,GPC12190000064,5.80
Stockport MBC,Services to People,Childrens & Educational Services,WM MORRISONS STORE,Catering Supplies,Catering Food & Beverages ,10.12.2019,16.01.2020,GPC12190000065,12.70
Stockport MBC,Services to People,Childrens & Educational Services,WM MORRISONS STORE,Catering Supplies,Catering Food & Beverages ,09.12.2019,16.01.2020,GPC12190000066,10.90
Stockport MBC,Services to People,Childrens & Educational Services,WM MORRISONS STORE,Catering Supplies,Catering Food & Beverages ,05.12.2019,16.01.2020,GPC12190000067,46.95
Stockport MBC,Services to People,Childrens & Educational Services,ASDA GROCERIES ONLINE,Catering Supplies,Catering Food & Beverages ,05.12.2019,16.01.2020,GPC12190000068,48.26
Stockport MBC,Services to People,Childrens & Educational Services,WM MORRISONS STORE,Catering Supplies,Catering Food & Beverages ,04.12.2019,16.01.2020,GPC12190000069,68.03
Stockport MBC,Services to People,Childrens & Educational Services,WM MORRISONS STORE,Catering Supplies,Catering Food & Beverages ,03.12.2019,16.01.2020,GPC12190000070,7.15
Stockport MBC,Corporate and Support Services,Corporate & Democratic Core,AMAZON.CO.UK CB1PX7PW5,Furniture and Equipment,Environmental Services Technical Equipment ,22.12.2019,16.01.2020,GPC12190000071,59.98
Stockport MBC,Corporate and Support Services,Corporate & Democratic Core,AMZNMKTPLACE,Expenses and Allowances,Catering  ,19.12.2019,16.01.2020,GPC12190000072,22.65
Stockport MBC,Corporate and Support Services,Corporate & Democratic Core,TOYE KENNING AND SPENC,Furniture and Equipment,Environmental Services Technical Equipment ,02.12.2019,16.01.2020,GPC12190000073,120.75
Stockport MBC,Corporate and Support Services,Central Support Costs,STATIONERY OFFICE BOOK,Legal Fees,Legal Services  ,27.12.2019,16.01.2020,GPC12190000074,30.43
Stockport MBC,Corporate and Support Services,Central Support Costs,WWW.GOV.UK,Legal Fees,Legal Services  ,24.12.2019,16.01.2020,GPC12190000075,1.50
Stockport MBC,Corporate and Support Services,Corporate & Democratic Core,TRAVELODGE GB0000,Expenses and Allowances,Catering  ,17.12.2019,16.01.2020,GPC12190000076,128.24
Stockport MBC,Corporate and Support Services,Corporate & Democratic Core,TRAINLINE,Travelling Expenses,Human Resources Travel & Subsistence ,17.12.2019,16.01.2020,GPC12190000077,361.50
Stockport MBC,Corporate and Support Services,Central Support Costs,EMX DYNAMICS LTD,Furniture and Equipment,Environmental Services Technical Equipment ,03.12.2019,16.01.2020,GPC12190000078,34.00
Stockport MBC,Corporate and Support Services,Cultural & Related Services,TESCO STORES 2317,Catering Supplies,Catering  ,28.12.2019,16.01.2020,GPC12190000079,7.00
Stockport MBC,Corporate and Support Services,Cultural & Related Services,TESCO STORES 2317,Catering Supplies,Catering  ,28.12.2019,16.01.2020,GPC12190000080,21.50
Stockport MBC,Corporate and Support Services,Cultural & Related Services,SAINSBURYS SACAT 2051,Catering Supplies,Catering  ,28.12.2019,16.01.2020,GPC12190000081,6.90
Stockport MBC,Corporate and Support Services,Cultural & Related Services,SAINSBURYS SUPERMARKET,Catering Supplies,Catering  ,13.12.2019,16.01.2020,GPC12190000082,0.65
Stockport MBC,Corporate and Support Services,Cultural & Related Services,RYMAN,Furniture and Equipment,Furniture & Soft Furnishings  ,13.12.2019,16.01.2020,GPC12190000083,44.97
Stockport MBC,Corporate and Support Services,Cultural & Related Services,THE WORKS,Publicity and Promotion,Arts & Leisure Services  ,28.12.2019,16.01.2020,GPC12190000084,11.00
Stockport MBC,Corporate and Support Services,Cultural & Related Services,SAINSBURYS LOC6202,Catering Supplies,Catering Food & Beverages ,20.12.2019,16.01.2020,GPC12190000085,26.00
Stockport MBC,Corporate and Support Services,Cultural & Related Services,ALDI 43 773,Catering Supplies,Catering Food & Beverages ,18.12.2019,16.01.2020,GPC12190000086,2.99
Stockport MBC,Corporate and Support Services,Cultural & Related Services,SAINSBURYS LOC6202,Catering Supplies,Catering Food & Beverages ,17.12.2019,16.01.2020,GPC12190000087,19.00
Stockport MBC,Corporate and Support Services,Cultural & Related Services,SAINSBURYS SUPERMARKET,Catering Supplies,Catering Food & Beverages ,17.12.2019,16.01.2020,GPC12190000088,6.85
Stockport MBC,Services to People,Childrens & Educational Services,AMAZON PRIME FQ8C87S45,Office Expenses,Stationery    ,18.12.2019,16.01.2020,GPC12190000089,7.99
Stockport MBC,Services to People,Childrens & Educational Services,WWW.OUTDOOR-LEARNING.O,Staff Training,Human Resources  ,17.12.2019,16.01.2020,GPC12190000090,190.00
Stockport MBC,Services to Place,Childrens & Educational Services,SAINSBURYS SACAT 0772,Catering Supplies,Catering Food & Beverages ,09.12.2019,16.01.2020,GPC12190000091,13.25
Stockport MBC,Services to Place,Childrens & Educational Services,SAINSBURYS 0851,Catering Supplies,Catering Food & Beverages ,02.12.2019,16.01.2020,GPC12190000092,12.69
Stockport MBC,Services to People,Childrens & Educational Services,AMAZON PRIME 666RR7OR5,Furniture and Equipment,Environmental Services Technical Equipment ,19.12.2019,16.01.2020,GPC12190000093,0.99
Stockport MBC,Services to People,Childrens & Educational Services,AMAZON.CO.UK YI7NF8835,Furniture and Equipment,Environmental Services Technical Equipment ,19.12.2019,16.01.2020,GPC12190000094,4.67
Stockport MBC,Services to People,Childrens & Educational Services,AMAZON PRIME,Furniture and Equipment,Environmental Services Technical Equipment ,19.12.2019,16.01.2020,GPC12190000095,-0.50
Stockport MBC,Services to People,Childrens & Educational Services,AMZ AMAZON.CO.UK,Furniture and Equipment,Environmental Services Technical Equipment ,18.12.2019,16.01.2020,GPC12190000096,-53.48
Stockport MBC,Services to People,Childrens & Educational Services,LIFE LEISURE BRINNINGT,Fees and Charges,Education  ,13.12.2019,16.01.2020,GPC12190000097,21.00
Stockport MBC,Services to People,Childrens & Educational Services,AMZNMKTPLACE AMAZON.CO,Furniture and Equipment,Environmental Services Technical Equipment ,15.12.2019,16.01.2020,GPC12190000098,6.54
Stockport MBC,Services to People,Childrens & Educational Services,AMZNMKTPLACE,Furniture and Equipment,Environmental Services Technical Equipment ,09.12.2019,16.01.2020,GPC12190000099,28.45
Stockport MBC,Services to People,Childrens & Educational Services,AMZNMKTPLACE,Furniture and Equipment,Environmental Services Technical Equipment ,09.12.2019,16.01.2020,GPC12190000100,22.78
Stockport MBC,Services to People,Childrens & Educational Services,AMZNMKTPLACE AMAZON.CO,Furniture and Equipment,Environmental Services Technical Equipment ,05.12.2019,16.01.2020,GPC12190000101,9.49
Stockport MBC,Corporate and Support Services,Planning Services,WM MORRISONS STORE,Publicity and Promotion,Arts & Leisure Services  ,18.12.2019,16.01.2020,GPC12190000102,26.44
Stockport MBC,Corporate and Support Services,Planning Services,ASDA STORES 4840,Publicity and Promotion,Arts & Leisure Services  ,16.12.2019,16.01.2020,GPC12190000103,7.00
Stockport MBC,Corporate and Support Services,Planning Services,ASDA STORES 4840,Publicity and Promotion,Arts & Leisure Services  ,16.12.2019,16.01.2020,GPC12190000104,20.00
Stockport MBC,Services to People,Childrens & Educational Services,ANNIES RESTAURANT,Catering Supplies,Catering Food & Beverages ,13.12.2019,16.01.2020,GPC12190000105,150.00
Stockport MBC,Services to People,Childrens & Educational Services,ANNIES RESTAURANT,Catering Supplies,Catering Food & Beverages ,13.12.2019,16.01.2020,GPC12190000106,-150.00
Stockport MBC,Services to People,Childrens & Educational Services,MY.MORRISONS.COM,Catering Supplies,Catering Food & Beverages ,09.12.2019,16.01.2020,GPC12190000107,20.00
Stockport MBC,Services to People,Childrens & Educational Services,PREMIER INN 44537275,Third party payments - Private/Voluntary Sector,Social Community Care Supplies & Services  ,10.12.2019,16.01.2020,GPC12190000108,-19.00
Stockport MBC,Services to People,Childrens & Educational Services,RESORT WORLD BIRMINGHA,Expenses and Allowances,Human Resources Training & Conferences ,02.12.2019,16.01.2020,GPC12190000109,260.00
Stockport MBC,Services to People,Childrens & Educational Services,RESORT WORLD BIRMINGHA,Expenses and Allowances,Human Resources Training & Conferences ,02.12.2019,16.01.2020,GPC12190000110,260.00
Stockport MBC,Services to People,Adult Social Care,BUTTERFLY GUEST HOUSE,Fees and Charges,UNCLASSIFIED  ,15.12.2019,16.01.2020,GPC12190000111,84.00
Stockport MBC,Services to People,Adult Social Care,BUTTERFLY GUEST HOUSE,Fees and Charges,UNCLASSIFIED  ,04.12.2019,16.01.2020,GPC12190000112,588.00
Stockport MBC,Services to People,Childrens & Educational Services,TESCO STORES 3378,Catering Supplies,Catering Food & Beverages ,17.12.2019,16.01.2020,GPC12190000113,31.24
Stockport MBC,Services to People,Childrens & Educational Services,ASDA STORES 4840,Catering Supplies,Catering Food & Beverages ,16.12.2019,16.01.2020,GPC12190000114,68.51
Stockport MBC,Services to People,Childrens & Educational Services,TESCO STORES 3378,Catering Supplies,Catering Food & Beverages ,05.12.2019,16.01.2020,GPC12190000115,9.70
Stockport MBC,Services to People,Childrens & Educational Services,POUNDSTRETCHER 793,Furniture and Equipment,Furniture & Soft Furnishings  ,05.12.2019,16.01.2020,GPC12190000116,5.65
Stockport MBC,Services to People,Childrens & Educational Services,ASDA STORES 4840,Catering Supplies,Catering Food & Beverages ,04.12.2019,16.01.2020,GPC12190000117,35.47
Stockport MBC,Services to People,Childrens & Educational Services,ASDA STORES 4840,Catering Supplies,Catering Food & Beverages ,03.12.2019,16.01.2020,GPC12190000118,4.00
Stockport MBC,Services to People,Childrens & Educational Services,ASDA STORES 4840,Catering Supplies,Catering Food & Beverages ,02.12.2019,16.01.2020,GPC12190000119,29.45
Stockport MBC,Services to People,Childrens & Educational Services,THETRAINLINE.COM,Care Payments,Social Community Care Supplies & Services  ,23.12.2019,16.01.2020,GPC12190000120,71.30
Stockport MBC,Services to People,Childrens & Educational Services,THETRAINLINE.COM,Care Payments,Social Community Care Supplies & Services  ,23.12.2019,16.01.2020,GPC12190000121,51.30
Stockport MBC,Services to People,Childrens & Educational Services,AIRBNB   HME5XP84MC,Care Payments,Social Community Care Supplies & Services  ,19.12.2019,16.01.2020,GPC12190000122,"1,818.82"
Stockport MBC,Services to People,Childrens & Educational Services,TRAVELODGE GB0000,Care Payments,Social Community Care Supplies & Services  ,17.12.2019,16.01.2020,GPC12190000123,69.74
Stockport MBC,Services to People,Childrens & Educational Services,TRAVELODGE GB0000,Care Payments,Social Community Care Supplies & Services  ,17.12.2019,16.01.2020,GPC12190000124,74.99
Stockport MBC,Services to People,Childrens & Educational Services,THETRAINLINE.COM,Care Payments,Social Community Care Supplies & Services  ,17.12.2019,16.01.2020,GPC12190000125,74.55
Stockport MBC,Services to People,Childrens & Educational Services,THETRAINLINE.COM,Care Payments,Social Community Care Supplies & Services  ,17.12.2019,16.01.2020,GPC12190000126,116.45
Stockport MBC,Services to People,Childrens & Educational Services,THETRAINLINE.COM,Care Payments,Social Community Care Supplies & Services  ,12.12.2019,16.01.2020,GPC12190000127,51.90
Stockport MBC,Services to People,Childrens & Educational Services,HEATON CHAPEL,Expenses and Allowances,Catering  ,12.12.2019,16.01.2020,GPC12190000128,193.50
Stockport MBC,Services to People,Childrens & Educational Services,THETRAINLINE.COM,Care Payments,Social Community Care Supplies & Services  ,09.12.2019,16.01.2020,GPC12190000129,44.90
Stockport MBC,Services to People,Childrens & Educational Services,WWW.ARGOS.CO.UK,Care Payments,Social Community Care Supplies & Services  ,05.12.2019,16.01.2020,GPC12190000130,222.95
Stockport MBC,Services to People,Childrens & Educational Services,TRAINLINE,Travelling Expenses,Human Resources Travel & Subsistence ,05.12.2019,16.01.2020,GPC12190000131,31.35
Stockport MBC,Services to People,Childrens & Educational Services,PREMIER INN44018615,Expenses and Allowances,Human Resources Training & Conferences ,04.12.2019,16.01.2020,GPC12190000132,121.00
Stockport MBC,Services to People,Childrens & Educational Services,BRITANNIA,Expenses and Allowances,Human Resources Training & Conferences ,04.12.2019,16.01.2020,GPC12190000133,183.50
Stockport MBC,Services to People,Childrens & Educational Services,THETRAINLINE.COM,Travelling Expenses,Human Resources Travel & Subsistence ,03.12.2019,16.01.2020,GPC12190000134,125.70
Stockport MBC,Services to People,Childrens & Educational Services,TRAINLINE,Travelling Expenses,Human Resources Travel & Subsistence ,03.12.2019,16.01.2020,GPC12190000135,357.50
Stockport MBC,Services to People,Childrens & Educational Services,TRAINLINE,Care Payments,Social Community Care Supplies & Services  ,02.12.2019,16.01.2020,GPC12190000136,34.35
Stockport MBC,Non-General Fund Items,"Agency, Third Party and System",TRAINLINE,Travelling Expenses,Human Resources Travel & Subsistence ,31.12.2019,16.01.2020,GPC12190000137,26.75
Stockport MBC,Services to People,Childrens & Educational Services,TRAINLINE,Travelling Expenses,Human Resources Travel & Subsistence ,31.12.2019,16.01.2020,GPC12190000138,72.50
Stockport MBC,Services to People,Childrens & Educational Services,THETRAINLINE.COM,Care Payments,Social Community Care Supplies & Services  ,30.12.2019,16.01.2020,GPC12190000139,22.55
Stockport MBC,Services to People,Childrens & Educational Services,THETRAINLINE.COM,Travelling Expenses,Human Resources Travel & Subsistence ,30.12.2019,16.01.2020,GPC12190000140,67.50
Stockport MBC,Services to People,Childrens & Educational Services,THETRAINLINE.COM,Care Payments,Social Community Care Supplies & Services  ,27.12.2019,16.01.2020,GPC12190000141,-13.60
Stockport MBC,Services to People,Childrens & Educational Services,AMAZON.CO.UK DI4OU12B5,Furniture and Equipment,Furniture & Soft Furnishings  ,27.12.2019,16.01.2020,GPC12190000142,801.91
Stockport MBC,Services to People,Childrens & Educational Services,AMAZON.CO.UK 9R9IQ9AA5,Furniture and Equipment,Furniture & Soft Furnishings  ,27.12.2019,16.01.2020,GPC12190000143,801.91
Stockport MBC,Services to People,Childrens & Educational Services,THETRAINLINE.COM,Care Payments,Social Community Care Supplies & Services  ,23.12.2019,16.01.2020,GPC12190000144,13.35
Stockport MBC,Services to People,Childrens & Educational Services,AMZNMKTPLACE,Information and Communications Technology,Information Communication Technology  ,20.12.2019,16.01.2020,GPC12190000145,343.87
Stockport MBC,Services to People,Childrens & Educational Services,THETRAINLINE.COM,Care Payments,Social Community Care Supplies & Services  ,13.12.2019,16.01.2020,GPC12190000146,64.50
Stockport MBC,Services to People,Childrens & Educational Services,TRAINLINE,Care Payments,Social Community Care Supplies & Services  ,13.12.2019,16.01.2020,GPC12190000147,22.25
Stockport MBC,Services to People,Childrens & Educational Services,THETRAINLINE.COM,Travelling Expenses,Human Resources Travel & Subsistence ,11.12.2019,16.01.2020,GPC12190000148,31.85
Stockport MBC,Services to People,Childrens & Educational Services,TRAINLINE,Travelling Expenses,Human Resources Travel & Subsistence ,11.12.2019,16.01.2020,GPC12190000149,33.95
Stockport MBC,Services to People,Childrens & Educational Services,TRAINLINE,Travelling Expenses,Human Resources Travel & Subsistence ,11.12.2019,16.01.2020,GPC12190000150,17.35
Stockport MBC,Services to People,Childrens & Educational Services,EGAN REID STATIONERY C,Office Expenses,Catering  ,11.12.2019,16.01.2020,GPC12190000151,251.42
Stockport MBC,Services to People,Childrens & Educational Services,"TLC: TALK, LISTEN, CHA",Care Payments,Social Community Care Supplies & Services  ,06.12.2019,16.01.2020,GPC12190000152,98.00
Stockport MBC,Services to People,Childrens & Educational Services,ROYAL LANCASTER LONDON,Expenses and Allowances,Human Resources Training & Conferences ,30.11.2019,16.01.2020,GPC12190000153,-233.10
Stockport MBC,Services to People,Childrens & Educational Services,ROYAL LANCASTER LONDON,Expenses and Allowances,Human Resources Training & Conferences ,30.11.2019,16.01.2020,GPC12190000154,-233.10
Stockport MBC,Services to People,Childrens & Educational Services,ROYAL LANCASTER LONDON,Expenses and Allowances,Human Resources Training & Conferences ,30.11.2019,16.01.2020,GPC12190000155,-233.10
Stockport MBC,Services to People,Childrens & Educational Services,WESTMINSTER INSIGHT,Staff Training,Human Resources  ,04.12.2019,16.01.2020,GPC12190000156,270.00
Stockport MBC,Services to People,Childrens & Educational Services,ROYAL LANCASTER LONDON,Expenses and Allowances,Human Resources Training & Conferences ,30.11.2019,16.01.2020,GPC12190000157,-233.10
Stockport MBC,Services to People,Childrens & Educational Services,CITIZEN&IMM-EAPPS ENLI,Care Payments,Social Community Care Supplies & Services  ,19.12.2019,16.01.2020,GPC12190000158,4.22
Stockport MBC,Services to People,Childrens & Educational Services,CITIZEN&IMM-EAPPS ENLI,Care Payments,Social Community Care Supplies & Services  ,19.12.2019,16.01.2020,GPC12190000159,4.22
Stockport MBC,Services to People,Childrens & Educational Services,AIR TRANSAT (PRE-SELEC,Care Payments,Social Community Care Supplies & Services  ,12.12.2019,16.01.2020,GPC12190000160,238.12
Stockport MBC,Services to People,Childrens & Educational Services,WWW.IKEA.COM,Publicity and Promotion,Arts & Leisure Services  ,06.12.2019,16.01.2020,GPC12190000161,184.95
Stockport MBC,Services to People,Childrens & Educational Services,WM MORRISONS STORE,Furniture and Equipment,Furniture & Soft Furnishings  ,10.12.2019,16.01.2020,GPC12190000162,20.11
Stockport MBC,Services to People,Childrens & Educational Services,AMZNMKTPLACE,Furniture and Equipment,Furniture & Soft Furnishings  ,03.12.2019,16.01.2020,GPC12190000163,120.78
Stockport MBC,Services to People,Childrens & Educational Services,W M MORRISON STORE,Catering Supplies,Catering Food & Beverages ,16.12.2019,16.01.2020,GPC12190000164,91.40
Stockport MBC,Services to People,Childrens & Educational Services,W M MORRISON STORE,Catering Supplies,Catering Food & Beverages ,02.12.2019,16.01.2020,GPC12190000165,6.60
Stockport MBC,Services to People,Childrens & Educational Services,W M MORRISON STORE,Catering Supplies,Catering Food & Beverages ,02.12.2019,16.01.2020,GPC12190000166,50.00
Stockport MBC,Services to People,Childrens & Educational Services,DUNELM,Furniture and Equipment,Environmental Services Technical Equipment ,29.12.2019,16.01.2020,GPC12190000167,155.00
Stockport MBC,Services to People,Childrens & Educational Services,AMAZON MUSIC UY2HA7QR5,Fees and Charges,Financial Services  ,29.12.2019,16.01.2020,GPC12190000168,3.99
Stockport MBC,Services to People,Childrens & Educational Services,STOCKPORT NHS FOUNDATI,Travelling Expenses,Human Resources Travel & Subsistence ,20.12.2019,16.01.2020,GPC12190000169,3.50
Stockport MBC,Services to People,Childrens & Educational Services,WH SMITH,Library Equipment,Education Library Books ,22.12.2019,16.01.2020,GPC12190000170,150.00
Stockport MBC,Services to People,Childrens & Educational Services,AMZNMKTPLACE AMAZON.CO,Furniture and Equipment,Environmental Services Technical Equipment ,19.12.2019,16.01.2020,GPC12190000171,189.70
Stockport MBC,Services to People,Childrens & Educational Services,AMAZON PRIME DZ85R1RB5,Fees and Charges,Financial Services  ,18.12.2019,16.01.2020,GPC12190000172,7.99
Stockport MBC,Services to People,Childrens & Educational Services,AMZNMKTPLACE,Furniture and Equipment,Environmental Services Technical Equipment ,12.12.2019,16.01.2020,GPC12190000173,21.96
Stockport MBC,Services to People,Childrens & Educational Services,JUST EAT,Catering Supplies,Catering Food & Beverages ,10.12.2019,16.01.2020,GPC12190000174,44.20
Stockport MBC,Services to People,Childrens & Educational Services,AMAZON.CO.UK UZ3P826O5,Care Payments,Social Community Care Supplies & Services  ,11.12.2019,16.01.2020,GPC12190000175,10.23
Stockport MBC,Services to People,Childrens & Educational Services,TIMPSON LTD,Repairs and Maintenance,"Works - Construction, Repair & Maintenance  ",03.12.2019,16.01.2020,GPC12190000176,110.80
Stockport MBC,Corporate and Support Services,Cultural & Related Services,SAINSBURYS SUPERMARKET,Catering Supplies,Catering Food & Beverages ,10.12.2019,16.01.2020,GPC12190000177,10.05
Stockport MBC,Corporate and Support Services,Cultural & Related Services,SAINSBURYS LOC6202,Catering Supplies,Catering Food & Beverages ,08.12.2019,16.01.2020,GPC12190000178,10.00
Stockport MBC,Corporate and Support Services,Cultural & Related Services,SAINSBURYS SUPERMARKET,Catering Supplies,Catering Food & Beverages ,08.12.2019,16.01.2020,GPC12190000179,6.20
Stockport MBC,Corporate and Support Services,Cultural & Related Services,W M MORRISON STORE,Catering Supplies,Catering Food & Beverages ,07.12.2019,16.01.2020,GPC12190000180,5.00
Stockport MBC,Services to People,Adult Social Care,STOCKPORT NHS FOUNDATI,Travelling Expenses,Human Resources Travel & Subsistence ,31.12.2019,16.01.2020,GPC12190000181,3.50
Stockport MBC,Services to People,Adult Social Care,STOCKPORT NHS FOUNDATI,Travelling Expenses,Human Resources Travel & Subsistence ,30.12.2019,16.01.2020,GPC12190000182,3.50
Stockport MBC,Services to People,Adult Social Care,STOCKPORT NHS FOUNDATI,Travelling Expenses,Human Resources Travel & Subsistence ,31.12.2019,16.01.2020,GPC12190000183,3.50
Stockport MBC,Services to People,Adult Social Care,STOCKPORT NHS FOUNDATI,Travelling Expenses,Human Resources Travel & Subsistence ,24.12.2019,16.01.2020,GPC12190000184,3.50
Stockport MBC,Services to People,Adult Social Care,STOCKPORT NHS FOUNDATI,Travelling Expenses,Human Resources Travel & Subsistence ,10.12.2019,16.01.2020,GPC12190000185,3.50
Stockport MBC,Services to People,Adult Social Care,GODLEY SST,Travelling Expenses,Human Resources Travel & Subsistence ,06.12.2019,16.01.2020,GPC12190000186,6.80
Stockport MBC,Services to People,Childrens & Educational Services,AMZNMKTPLACE AMAZON.CO,Furniture and Equipment,Environmental Services Technical Equipment ,18.12.2019,16.01.2020,GPC12190000187,18.26
Stockport MBC,Services to People,Childrens & Educational Services,B & Q 1279,Furniture and Equipment,Environmental Services Technical Equipment ,13.12.2019,16.01.2020,GPC12190000188,95.49
Stockport MBC,Services to People,Childrens & Educational Services,B & Q 1279,Furniture and Equipment,Environmental Services Technical Equipment ,13.12.2019,16.01.2020,GPC12190000189,61.44
Stockport MBC,Services to People,Childrens & Educational Services,AMZNMKTPLACE,Furniture and Equipment,Environmental Services Technical Equipment ,11.12.2019,16.01.2020,GPC12190000190,39.99
Stockport MBC,Services to People,Childrens & Educational Services,AMZNMKTPLACE AMAZON.CO,Furniture and Equipment,Environmental Services Technical Equipment ,09.12.2019,16.01.2020,GPC12190000191,54.99
Stockport MBC,Services to People,Childrens & Educational Services,AMAZON.CO.UK WC2GP0S25,Furniture and Equipment,Environmental Services Technical Equipment ,09.12.2019,16.01.2020,GPC12190000192,10.28
Stockport MBC,Services to People,Childrens & Educational Services,AMZNMKTPLACE AMAZON.CO,Furniture and Equipment,Environmental Services Technical Equipment ,05.12.2019,16.01.2020,GPC12190000193,54.99
Stockport MBC,Services to People,Childrens & Educational Services,AMAZON.CO.UK 1L5QY8W75,Furniture and Equipment,Environmental Services Technical Equipment ,05.12.2019,16.01.2020,GPC12190000194,24.76
Stockport MBC,Services to People,Childrens & Educational Services,AMZNMKTPLACE,Furniture and Equipment,Environmental Services Technical Equipment ,03.12.2019,16.01.2020,GPC12190000195,34.90
Stockport MBC,Services to People,Childrens & Educational Services,W M MORRISON STORE,Catering Supplies,Catering Food & Beverages ,02.12.2019,16.01.2020,GPC12190000196,37.22
Stockport MBC,Corporate and Support Services,Planning Services,HERON FOODS,Publicity and Promotion,Arts & Leisure Services  ,10.12.2019,16.01.2020,GPC12190000197,12.92
Stockport MBC,Corporate and Support Services,Central Support Costs,GOOGLE  CLOUD_006788-6,Information and Communications Technology,Information Communication Technology  ,31.12.2019,16.01.2020,GPC12190000198,0.17
Stockport MBC,Corporate and Support Services,Central Support Costs,FASTHOSTS INTERNET,Information and Communications Technology,Information Communication Technology  ,30.12.2019,16.01.2020,GPC12190000199,18.99
Stockport MBC,Corporate and Support Services,Central Support Costs,AMZNMKTPLACE,Furniture and Equipment,Environmental Services Technical Equipment ,30.12.2019,16.01.2020,GPC12190000200,49.79
Stockport MBC,Corporate and Support Services,Central Support Costs,GITHUB,Information and Communications Technology,Information Communication Technology  ,28.12.2019,16.01.2020,GPC12190000201,162.74
Stockport MBC,Corporate and Support Services,Central Support Costs,PAYPAL  CONTENTDESI,Library Equipment,Education Library Books ,19.12.2019,16.01.2020,GPC12190000202,13.80
Stockport MBC,Corporate and Support Services,Central Support Costs,FASTHOSTS INTERNET,Information and Communications Technology,Information Communication Technology  ,19.12.2019,16.01.2020,GPC12190000203,23.78
Stockport MBC,Corporate and Support Services,Central Support Costs,FASTHOSTS INTERNET,Information and Communications Technology,Information Communication Technology  ,19.12.2019,16.01.2020,GPC12190000204,23.78
Stockport MBC,Corporate and Support Services,Central Support Costs,FASTHOSTS INTERNET,Information and Communications Technology,Information Communication Technology  ,19.12.2019,16.01.2020,GPC12190000205,23.78
Stockport MBC,Corporate and Support Services,Central Support Costs,FASTHOSTS INTERNET,Information and Communications Technology,Information Communication Technology  ,19.12.2019,16.01.2020,GPC12190000206,23.78
Stockport MBC,Corporate and Support Services,Central Support Costs,FASTHOSTS INTERNET,Information and Communications Technology,Information Communication Technology  ,19.12.2019,16.01.2020,GPC12190000207,23.78
Stockport MBC,Corporate and Support Services,Central Support Costs,FASTHOSTS INTERNET,Information and Communications Technology,Information Communication Technology  ,19.12.2019,16.01.2020,GPC12190000208,30.98
Stockport MBC,Corporate and Support Services,Central Support Costs,FASTHOSTS INTERNET,Information and Communications Technology,Information Communication Technology  ,19.12.2019,16.01.2020,GPC12190000209,23.78
Stockport MBC,Corporate and Support Services,Central Support Costs,FASTHOSTS INTERNET,Information and Communications Technology,Information Communication Technology  ,19.12.2019,16.01.2020,GPC12190000210,23.78
Stockport MBC,Corporate and Support Services,Central Support Costs,FASTHOSTS INTERNET,Information and Communications Technology,Information Communication Technology  ,19.12.2019,16.01.2020,GPC12190000211,23.78
Stockport MBC,Corporate and Support Services,Central Support Costs,FASTHOSTS INTERNET,Information and Communications Technology,Information Communication Technology  ,19.12.2019,16.01.2020,GPC12190000212,23.78
Stockport MBC,Corporate and Support Services,Central Support Costs,FASTHOSTS INTERNET,Information and Communications Technology,Information Communication Technology  ,19.12.2019,16.01.2020,GPC12190000213,38.18
Stockport MBC,Corporate and Support Services,Central Support Costs,FASTHOSTS INTERNET,Information and Communications Technology,Information Communication Technology  ,19.12.2019,16.01.2020,GPC12190000214,47.78
Stockport MBC,Corporate and Support Services,Central Support Costs,FASTHOSTS INTERNET,Information and Communications Technology,Information Communication Technology  ,17.12.2019,16.01.2020,GPC12190000215,23.78
Stockport MBC,Corporate and Support Services,Central Support Costs,STOCKPORT TVM,Travelling Expenses,Human Resources Travel & Subsistence ,16.12.2019,16.01.2020,GPC12190000216,12.60
Stockport MBC,Corporate and Support Services,Central Support Costs,AUTH0.COM,Information and Communications Technology,Information Communication Technology  ,13.12.2019,16.01.2020,GPC12190000217,9.38
Stockport MBC,Corporate and Support Services,Central Support Costs,SPARKOL,Information and Communications Technology,Information Communication Technology  ,13.12.2019,16.01.2020,GPC12190000218,76.60
Stockport MBC,Corporate and Support Services,Central Support Costs,WWW.CONTENTFUL.COM,Information and Communications Technology,Information Communication Technology  ,10.12.2019,16.01.2020,GPC12190000219,766.13
Stockport MBC,Corporate and Support Services,Central Support Costs,AWS EMEA,Information and Communications Technology,Information Communication Technology  ,10.12.2019,16.01.2020,GPC12190000220,9.95
Stockport MBC,Corporate and Support Services,Central Support Costs,AUTH0.COM,Information and Communications Technology,Information Communication Technology  ,05.12.2019,16.01.2020,GPC12190000221,157.32
Stockport MBC,Corporate and Support Services,Central Support Costs,"INVISIONAPP, INC",Information and Communications Technology,Information Communication Technology  ,05.12.2019,16.01.2020,GPC12190000222,0.79
Stockport MBC,Corporate and Support Services,Central Support Costs,"INVISIONAPP, INC",Information and Communications Technology,Information Communication Technology  ,05.12.2019,16.01.2020,GPC12190000223,-0.79
Stockport MBC,Corporate and Support Services,Central Support Costs,AWS EMEA,Information and Communications Technology,Information Communication Technology  ,03.12.2019,16.01.2020,GPC12190000224,826.12
Stockport MBC,Corporate and Support Services,Cultural & Related Services,B & M RETAIL,Office Expenses,Stationery    ,05.12.2019,16.01.2020,GPC12190000225,19.58
Stockport MBC,Services to People,Childrens & Educational Services,WM MORRISONS STORE,Catering Supplies,Catering Food & Beverages ,05.12.2019,16.01.2020,GPC12190000226,18.15
Stockport MBC,Services to People,Childrens & Educational Services,WM MORRISONS STORE,Catering Supplies,Catering Food & Beverages ,05.12.2019,16.01.2020,GPC12190000227,6.00
Stockport MBC,Services to People,Childrens & Educational Services,ASDA SUPERSTORE,Catering Supplies,Catering Food & Beverages ,18.12.2019,16.01.2020,GPC12190000228,12.31
Stockport MBC,Services to People,Childrens & Educational Services,WWW.DOMINOS.CO.UK,Catering Supplies,Catering Food & Beverages ,18.12.2019,16.01.2020,GPC12190000229,19.99
Stockport MBC,Services to People,Childrens & Educational Services,WWW.DOMINOS.CO.UK,Catering Supplies,Catering Food & Beverages ,16.12.2019,16.01.2020,GPC12190000230,13.99
Stockport MBC,Services to People,Childrens & Educational Services,ASDA SUPERSTORE,Catering Supplies,Catering Food & Beverages ,16.12.2019,16.01.2020,GPC12190000231,6.30
Stockport MBC,Services to People,Childrens & Educational Services,STOCKPORT T/O,Travelling Expenses,Human Resources Travel & Subsistence ,12.12.2019,16.01.2020,GPC12190000232,15.75
Stockport MBC,Services to People,Childrens & Educational Services,ASDA SUPERSTORE,Catering Supplies,Catering Food & Beverages ,11.12.2019,16.01.2020,GPC12190000233,6.52
Stockport MBC,Services to People,Childrens & Educational Services,ASDA SUPERSTORE,Catering Supplies,Catering Food & Beverages ,09.12.2019,16.01.2020,GPC12190000234,5.40
Stockport MBC,Services to People,Childrens & Educational Services,CLINTONS  645,Publicity and Promotion,Facilities & Management Services  ,05.12.2019,16.01.2020,GPC12190000235,10.00
Stockport MBC,Services to People,Childrens & Educational Services,ASDA SUPERSTORE,Catering Supplies,Catering Food & Beverages ,04.12.2019,16.01.2020,GPC12190000236,8.86
Stockport MBC,Services to People,Childrens & Educational Services,ASDA SUPERSTORE,Catering Supplies,Catering Food & Beverages ,02.12.2019,16.01.2020,GPC12190000237,5.06
Stockport MBC,Services to People,Childrens & Educational Services,BRAMALL PARK GOLF CLUB,Staff Training,Human Resources  ,23.12.2019,16.01.2020,GPC12190000238,305.65
Stockport MBC,Services to People,Childrens & Educational Services,ETSY.COM - PLANTPARCEL,Staff Training,Human Resources  ,18.12.2019,16.01.2020,GPC12190000239,77.97
Stockport MBC,Services to People,Childrens & Educational Services,AMZNMKTPLACE,Office Expenses,Stationery    ,13.12.2019,16.01.2020,GPC12190000240,5.90
Stockport MBC,Services to People,Childrens & Educational Services,SP   LANTANA,Library Equipment,Education Library Books ,12.12.2019,16.01.2020,GPC12190000241,76.96
Stockport MBC,Corporate and Support Services,Central Support Costs,AMZNMKTPLACE,Furniture and Equipment,Environmental Services Technical Equipment ,16.12.2019,16.01.2020,GPC12190000242,28.72
Stockport MBC,Corporate and Support Services,Central Support Costs,REPLACEBASE,Furniture and Equipment,Environmental Services Technical Equipment ,13.12.2019,16.01.2020,GPC12190000243,104.81
Stockport MBC,Corporate and Support Services,Central Support Costs,REPLACEBASE,Furniture and Equipment,Environmental Services Technical Equipment ,11.12.2019,16.01.2020,GPC12190000244,135.63
Stockport MBC,Corporate and Support Services,Central Support Costs,AMZNMKTPLACE,Furniture and Equipment,Environmental Services Technical Equipment ,05.12.2019,16.01.2020,GPC12190000245,173.71
Stockport MBC,Services to Place,Highways & Transport Services,TRAINLINE,Travelling Expenses,Human Resources Travel & Subsistence ,30.12.2019,16.01.2020,GPC12190000246,41.90
Stockport MBC,Corporate and Support Services,Central Services to the public,TRAINLINE,Travelling Expenses,Human Resources Travel & Subsistence ,30.12.2019,16.01.2020,GPC12190000247,220.60
Stockport MBC,Services to Place,Highways & Transport Services,TRAINLINE,Travelling Expenses,Human Resources Travel & Subsistence ,20.12.2019,16.01.2020,GPC12190000248,240.70
Stockport MBC,Services to Place,Planning Services,TRAINLINE,Travelling Expenses,Human Resources Travel & Subsistence ,17.12.2019,16.01.2020,GPC12190000249,419.70
Stockport MBC,Corporate and Support Services,Central Support Costs,TRAINLINE,Travelling Expenses,Human Resources Travel & Subsistence ,09.12.2019,16.01.2020,GPC12190000250,370.10
Stockport MBC,Corporate and Support Services,Cultural & Related Services,HOLIDAY INNS,Office Expenses,Facilities & Management Services  ,12.12.2019,16.01.2020,GPC12190000251,60.00
Stockport MBC,Corporate and Support Services,Cultural & Related Services,HOLIDAY INNS,Office Expenses,Facilities & Management Services  ,12.12.2019,16.01.2020,GPC12190000252,60.00
